bitfinex-derivatives/quotes_ETHF0:USTF0_20250701
["timestamp","ask_amount","ask_price","bid_price","bid_amount"]
[1751348203875,0.81513,2453.0,2452.9,0.81515]
[1751348204175,0.6816,2453.1,2453.0,0.81512]
[1751348205580,44.0078,2453.2,2453.1,0.81509]
[1751348205780,69.95785,2453.2,2453.1,0.81509]
[1751348205982,69.1428,2453.2,2452.9,0.81514]
[1751348206181,44.0078,2453.2,2453.0,0.81511]
[1751348206382,69.94988,2453.2,2453.0,0.81511]
[1751348206776,44.0078,2453.2,2453.1,0.81509]
[1751348206980,44.82285,2453.2,2453.1,0.81509]
[1751348207180,0.8151,2453.1,2453.0,0.81509]
[1751348207382,44.82288,2453.2,2453.1,0.81509]
[1751348207679,44.0078,2453.2,2453.1,0.81509]
[1751348210081,44.82285,2453.2,2453.1,0.81509]
[1751348211278,44.0078,2453.2,2453.1,0.81509]
[1751348211679,44.0078,2453.2,2453.1,2.25839]
[1751348212080,44.82285,2453.2,2453.1,2.25839]
[1751348212984,40.8,2453.2,2453.1,2.25839]
[1751348213186,41.61505,2453.2,2453.1,2.25839]
[1751348213482,40.8,2453.2,2453.1,2.25839]
[1751348213883,41.61505,2453.2,2453.1,2.25839]
[1751348214084,40.8,2453.2,2453.1,2.25839]
[1751348214482,41.61505,2453.2,2453.1,2.25839]
[1751348215377,41.61505,2453.2,2453.1,1.4433]
[1751348215986,41.61505,2453.2,2453.1,2.25839]
[1751348217685,40.8,2453.2,2453.1,2.25839]
[1751348217993,41.61505,2453.2,2453.1,2.25839]
[1751348220486,40.8,2453.2,2453.1,2.25839]
[1751348220782,41.61505,2453.2,2453.1,2.25839]
[1751348221583,3.2078,2453.3,2453.2,0.81505]
[1751348221888,0.81509,2453.1,2453.0,1.48522]
[1751348222091,0.81507,2453.2,2453.1,0.81507]
[1751348222386,1.73175371,2453.2,2453.1,0.81507]
[1751348222586,0.81509,2453.1,2453.0,1.4852]
[1751348222786,0.81508,2453.2,2453.1,0.81509]
[1751348222986,1.73176379,2453.2,2453.1,0.81509]
[1751348223484,0.81509,2453.1,2453.0,1.4852]
[1751348223684,0.81515,2452.9,2452.8,2.13356]
[1751348223887,0.81515,2453.0,2452.9,0.81515]
[1751348224186,0.6527,2453.1,2453.0,0.81512]
[1751348224378,44.82283,2453.3,2452.9,2.33974256]
[1751348224581,0.91690522,2453.2,2453.1,0.81509]
[1751348224783,0.91690522,2453.2,2453.1,2.23299]
[1751348225683,0.91690522,2453.2,2453.1,4.57273256]
[1751348227090,44.0078,2453.3,2453.2,0.81505]
[1751348227291,0.81495,2453.6,2453.5,0.81494]
[1751348227591,0.81495,2453.5,2453.4,3.15470256]
[1751348227790,42.5291233,2453.5,2453.4,2.33974256]
[1751348228087,0.81504,2453.3,2453.2,11.654]
[1751348228282,0.81505,2453.2,2453.0,3.68674256]
[1751348228479,0.81509,2453.1,2453.0,15.47865256]
[1751348228684,0.81509,2453.1,2453.0,0.6698]
[1751348229093,0.81509,2453.1,2453.0,1.48492]
[1751348230292,0.81509,2453.1,2453.0,0.6698]
[1751348230691,0.81509,2453.1,2453.0,1.48492]
[1751348230890,0.81509,2453.1,2453.0,3.82466256]
[1751348232594,0.81507,2453.2,2453.1,0.81508]
[1751348232789,1.72990928,2453.2,2453.1,0.81508]
[1751348233094,0.81509,2453.1,2453.0,0.6698]
[1751348233995,1.72987035,2453.1,2453.0,0.6698]
[1751348234891,1.72987035,2453.1,2453.0,3.00954256]
[1751348238695,0.81515,2452.9,2452.8,11.654]
[1751348239500,0.81515,2452.9,2452.8,12.46919]
[1751348239700,0.81515,2452.9,2452.8,11.654]
[1751348239900,0.81515,2452.9,2452.8,13.99374256]
[1751348240503,1.73078116,2452.9,2452.8,14.80893256]
[1751348240802,0.81515,2452.9,2452.8,14.80893256]
[1751348241697,0.81515,2453.0,2452.9,0.81514]
[1751348241899,1.7308657,2453.0,2452.9,2.33974256]
[1751348242299,1.7308657,2453.0,2452.9,3.15489256]
[1751348242499,1.7308657,2453.0,2452.9,2.33974256]
[1751348242908,1.7308657,2453.0,2452.9,3.15489256]
[1751348243108,0.81515,2452.9,2452.8,12.46917]
[1751348243308,0.81515,2452.9,2452.8,14.80891256]
[1751348243903,3.2078,2453.1,2452.8,18.99374256]
[1751348244207,3.2078,2453.1,2453.0,3.15486256]
[1751348244405,4.12340158,2453.1,2453.0,3.15486256]
[1751348245503,4.93849158,2453.1,2453.0,3.15486256]
[1751348248010,4.93849158,2453.1,2453.0,2.33974256]
[1751348248609,4.93849158,2453.1,2453.0,3.15486256]
[1751348249708,4.12340158,2453.1,2453.0,3.15486256]
[1751348249912,3.2078,2453.1,2453.0,3.15486256]
[1751348250113,3.2078,2453.4,2453.3,0.81499]
[1751348250409,4.93820435,2453.4,2453.3,0.81499]
[1751348251110,4.93820435,2453.4,2453.2,3.15477256]
[1751348251312,1.73043435,2453.3,2453.2,3.15477256]
[1751348252108,0.81502,2453.3,2453.2,3.15477256]
[1751348252604,4.02281,2453.4,2453.3,0.81502]
[1751348252808,4.12294432,2453.4,2453.3,0.81502]
[1751348254311,40.8,2453.5,2453.4,0.81499]
[1751348254514,0.91491611,2453.5,2453.4,3.15473256]
[1751348255816,40.8,2453.6,2453.5,0.81495]
[1751348256018,41.71760511,2453.6,2453.5,0.81495]
[1751348256315,3.2078,2454.0,2453.9,0.81482]
[1751348256516,4.94002475,2454.0,2453.9,3.15456256]
[1751348256716,44.92523475,2454.0,2453.9,3.15456256]
[1751348257216,44.0078,2454.0,2453.9,3.15456256]
[1751348257418,44.0078,2454.0,2453.9,2.33974256]
[1751348257714,44.82259,2454.0,2453.9,3.15456256]
[1751348258212,44.82259,2454.0,2453.9,2.33974256]
[1751348258419,44.82259,2454.0,2453.9,3.15456256]
[1751348258618,44.82259,2454.0,2453.9,2.33974256]
[1751348258814,0.81485,2453.8,2453.7,1.3186]
[1751348259116,0.81484,2453.9,2453.8,0.81485]
[1751348259313,44.82262,2454.0,2453.7,13.95574256]
[1751348259517,44.0078,2454.0,2453.9,3.15456256]
[1751348259919,3.2078,2454.3,2454.2,0.81472]
[1751348260112,3.2078,2454.3,2454.2,3.15446256]
[1751348260314,44.0078,2454.3,2454.2,14.77046256]
[1751348260616,0.81466,2454.4,2454.2,13.95574256]
[1751348260815,0.81466,2454.4,2454.3,1.4453]
[1751348261313,0.81469,2454.3,2454.2,11.616]
[1751348262221,0.81472,2454.2,2454.1,0.707]
[1751348262421,0.81472,2454.2,2454.1,37.32]
[1751348263724,0.81472,2454.2,2454.1,39.65974256]
[1751348264017,3.9074,2454.3,2454.1,39.65974256]
[1751348264018,4.02252,2454.3,2454.2,0.81472]
[1751348264219,3.2078,2454.3,2454.2,2.22022]
[1751348264419,3.2078,2454.3,2454.2,1.4055]
[1751348264621,0.81472,2454.2,2454.1,37.319]
[1751348264925,3.2078,2454.3,2454.1,0.707]
[1751348265227,3.2078,2454.3,2454.2,3.15446256]
[1751348265423,3.2078,2454.3,2454.2,4.50476256]
[1751348266327,0.81468,2454.4,2454.2,4.50476256]
[1751348266828,4.5622,2454.6,2454.2,3.69004256]
[1751348267027,0.81464,2454.5,2454.4,2.33974256]
[1751348267527,0.81464,2454.5,2454.4,3.15440256]
[1751348267827,4.67721,2454.6,2454.4,4.50470256]
[1751348268227,4.67719,2454.6,2454.4,29.49668256]
[1751348268426,4.67719,2454.6,2454.5,0.81462]
[1751348268822,4.67719,2454.6,2454.5,1.53782]
[1751348269319,3.2078,2454.6,2454.5,1.53782]
[1751348269528,4.02239,2454.6,2454.5,2.1192]
[1751348269827,4.02239,2454.6,2454.5,2.93382]
[1751348270430,3.2078,2454.6,2454.5,2.93382]
[1751348271123,0.81441,2455.2,2454.9,0.81447]
[1751348271321,0.91165588,2455.1,2455.0,2.33974256]
[1751348271524,0.91165588,2455.1,2455.0,3.15420256]
[1751348271725,40.8,2455.2,2455.0,3.15420256]
[1751348271926,40.8,2455.2,2455.1,0.81442]
[1751348272424,4.564,2455.5,2455.3,0.81433]
[1751348272725,0.9116812,2455.4,2455.3,0.81433]
[1751348272923,0.9116812,2455.4,2455.3,28.17107256]
[1751348273129,3.2078,2455.9,2455.4,2.0358]
[1751348273327,3.2078,2455.9,2455.8,3.15393256]
[1751348273521,0.701,2456.0,2455.7,25.027]
[1751348273837,0.81419,2455.8,2455.7,25.027]
[1751348274132,0.81418,2455.9,2455.7,25.027]
[1751348274431,0.81419,2455.8,2455.7,25.027]
[1751348275029,8.27072256,2456.2,2455.7,25.027]
[1751348275030,3.2078,2456.2,2455.7,25.027]
[1751348275228,0.8141,2456.1,2456.0,2.33974256]
[1751348275530,4.02188,2456.2,2456.0,2.33974256]
[1751348275722,3.2078,2456.2,2456.1,0.81409]
[1751348275929,41.5161,2456.3,2456.2,0.81406]
[1751348276134,0.7161,2456.3,2456.2,3.15380256]
[1751348276733,0.7161,2456.3,2456.2,2.33974256]
[1751348277034,0.7161,2456.3,2456.2,3.15380256]
[1751348277928,0.81398,2456.5,2456.3,0.81402]
[1751348278428,0.6696,2456.6,2456.3,0.81402]
[1751348278623,1.48355,2456.6,2456.4,0.81399]
[1751348278828,0.6696,2456.6,2456.3,2.2258]
[1751348279030,0.6696,2456.6,2456.3,27.9258]
[1751348279329,0.6696,2456.6,2456.4,3.15372256]
[1751348279534,0.6696,2456.6,2456.5,0.81396]
[1751348281734,4.02165,2456.9,2456.5,11.642]
[1751348282026,0.711,2456.8,2456.7,0.81388]
[1751348282227,0.711,2456.8,2456.7,3.15362256]
[1751348282629,3.2078,2456.9,2456.8,0.81386]
[1751348283229,3.2078,2456.9,2456.7,0.81388]
[1751348283432,0.81386,2456.8,2456.7,2.33974256]
[1751348283634,3.2078,2456.9,2456.7,0.81387]
[1751348283835,4.02163,2456.9,2456.7,0.81387]
[1751348284225,3.2078,2456.9,2456.8,0.81386]
[1751348284426,40.8,2457.0,2456.8,2.33974256]
[1751348284636,2.22355,2457.2,2456.9,0.81383]
[1751348284831,2.22355,2457.2,2457.0,3.15353256]
[1751348285036,3.74954256,2457.2,2456.7,3.2078]
[1751348285229,0.81383,2456.9,2456.8,36.662]
[1751348286242,41.61378,2457.1,2456.9,0.81383]
[1751348286432,41.61378,2457.1,2456.9,3.15357256]
[1751348286633,1.52474,2457.2,2457.0,0.81379]
[1751348286828,0.81379,2457.0,2456.9,2.33974256]
[1751348287840,41.61379,2457.0,2456.9,2.33974256]
[1751348288138,41.61379,2457.0,2456.9,3.15357256]
[1751348288332,0.81383,2456.9,2456.8,37.47584]
[1751348288532,41.61381,2457.0,2456.9,0.81383]
[1751348288838,41.61381,2457.0,2456.8,36.662]
[1751348288839,0.81383,2456.9,2456.8,37.47584]
[1751348289527,0.81383,2456.9,2456.8,36.662]
[1751348289732,0.81383,2456.9,2456.8,37.47586]
[1751348290736,40.8,2457.0,2456.9,0.81383]
[1751348290939,3.2078,2457.6,2457.4,0.81365]
[1751348291143,0.81358,2457.7,2457.6,0.81359]
[1751348291830,0.81359,2457.7,2457.6,0.81359]
[1751348292035,0.81357,2457.7,2457.6,0.81358]
[1751348292237,3.9276,2457.9,2457.7,0.81354]
[1751348292444,4.7411,2457.9,2457.8,2.33974256]
[1751348292640,0.81363,2457.5,2457.4,5.54754256]
[1751348293539,0.81373,2457.2,2457.1,3.9149]
[1751348293742,0.81373,2457.2,2457.1,3.2078]
[1751348294934,0.81383,2456.9,2456.8,3.2078]
[1751348295143,0.81383,2456.9,2456.8,39.8738]
[1751348295544,0.81383,2456.9,2456.8,39.8748]
[1751348296041,0.81383,2456.9,2456.8,40.68866]
[1751348296242,0.81383,2456.9,2456.8,39.8748]
[1751348296633,0.81383,2456.9,2456.8,3.2078]
[1751348296841,0.81389,2456.7,2456.6,0.7071]
[1751348297043,0.81389,2456.7,2456.6,37.3681]
[1751348297235,0.81389,2456.7,2456.6,36.664]
[1751348297440,0.81389,2456.7,2456.6,11.635]
[1751348298444,0.81393,2456.6,2456.5,3.2078]
[1751348299046,0.81393,2456.6,2456.5,5.46216]
[1751348299345,0.81393,2456.6,2456.5,4.6482]
[1751348299540,0.81393,2456.6,2456.5,5.46216]
[1751348299741,0.81393,2456.6,2456.5,4.6482]
[1751348300145,0.81393,2456.6,2456.5,5.46216]
[1751348300346,0.6952,2456.8,2456.5,9.1266116]
[1751348300544,0.81387,2456.8,2456.6,27.2783]
[1751348300749,0.81385,2456.9,2456.7,2.25428]
[1751348300944,0.81383,2456.9,2456.8,6.6003116]
[1751348301146,0.6878,2457.2,2456.8,31.6233116]
[1751348301346,0.81378,2457.1,2456.9,13.88923]
[1751348301645,0.81378,2457.1,2457.0,26.3844]
[1751348302040,1.50156,2457.2,2457.0,26.3844]
[1751348302248,0.81376,2457.2,2457.1,2.17216]
[1751348302544,3.2078,2457.3,2457.2,0.81373]
[1751348302739,0.81368,2457.4,2457.2,29.04953]
[1751348302938,0.81368,2457.4,2457.3,1.3584]
[1751348303341,0.81369,2457.3,2457.2,25.028]
[1751348303644,0.81369,2457.3,2457.2,36.658]
[1751348303835,40.8,2457.5,2457.2,36.658]
[1751348303836,0.81368,2457.4,2457.2,41.9501216]
[1751348304041,0.81366,2457.4,2457.3,1.3584]
[1751348304240,0.9046531,2457.4,2457.3,2.17209]
[1751348304436,0.9046531,2457.4,2457.3,6.03369]
[1751348304641,0.9046531,2457.4,2457.3,6.68879]
[1751348305946,0.8136,2457.6,2457.4,0.81363]
[1751348306148,0.8136,2457.6,2457.5,26.4266]
[1751348306538,1.72018113,2457.6,2457.5,27.24023]
[1751348306748,0.81358,2457.7,2457.5,27.24023]
[1751348306950,4.02136,2457.8,2457.6,0.81359]
[1751348307451,4.02133,2457.8,2457.7,0.81356]
[1751348307644,4.02133,2457.8,2457.6,0.81357]
[1751348307845,0.81356,2457.7,2457.5,26.4266]
[1751348308047,3.2078,2457.8,2457.7,0.81356]
[1751348308248,4.02134,2457.8,2457.6,0.81357]
[1751348308448,4.02134,2457.8,2457.7,2.21486]
[1751348308449,3.2078,2457.8,2457.7,2.21486]
[1751348308649,3.2078,2457.8,2457.7,1.81808762]
[1751348308844,3.2078,2457.8,2457.7,1.00452762]
[1751348309055,3.2078,2457.8,2457.7,1.81808762]
[1751348309346,0.81348,2458.0,2457.7,15.83932762]
[1751348309649,0.8135,2457.9,2457.8,25.014]
[1751348309844,0.8135,2457.9,2457.7,0.81354]
[1751348310046,0.81353,2457.8,2457.6,0.81357]
[1751348310247,5.95436,2458.2,2457.7,0.81356]
[1751348310447,0.8135,2457.9,2457.8,36.65]
[1751348310648,0.8135,2457.9,2457.8,11.627]
[1751348312352,0.8135,2457.9,2457.8,12.44053]
[1751348312548,0.81348,2458.0,2457.9,0.81348]
[1751348314453,0.81345,2458.1,2458.0,0.81344]
[1751348314647,3.2078,2458.6,2458.0,3.2078]
[1751348314852,0.81335,2458.4,2458.3,0.81335]
[1751348315352,0.81335,2458.4,2458.2,0.81337]
[1751348315860,0.90866871,2458.3,2458.2,0.81337]
[1751348316955,0.90866871,2458.3,2458.0,3.2078]
[1751348317152,0.81346,2458.0,2457.9,1.53237]
[1751348317353,0.81346,2458.0,2457.9,37.44847]
[1751348317953,2.03335,2458.4,2458.0,0.81346]
[1751348317954,0.81345,2458.1,2458.0,0.81346]
[1751348318251,0.90822094,2458.1,2458.0,0.81346]
[1751348318861,0.90822094,2458.1,2458.0,4.02126]
[1751348319051,0.81338,2458.3,2458.1,0.81341]
[1751348320259,0.8134,2458.2,2458.1,0.81341]
[1751348320455,0.8134,2458.2,2458.0,8.4996516]
[1751348320755,0.8134,2458.2,2458.1,36.624]
[1751348321559,0.81343,2458.1,2458.0,3.2078]
[1751348321755,0.81343,2458.1,2458.0,39.8188]
[1751348322358,0.81342,2458.2,2458.0,40.63226]
[1751348322760,0.81343,2458.1,2458.0,40.63226]
[1751348322960,0.81342,2458.2,2458.1,0.81343]
[1751348323163,2.74175,2458.5,2458.1,0.81343]
[1751348323353,0.81342,2458.2,2458.1,11.624]
[1751348323755,2.03343,2458.3,2457.7,8.01654029]
[1751348323959,0.81349,2458.0,2457.8,36.603]
[1751348324159,0.81341,2458.2,2458.1,0.81342]
[1751348324965,0.81336,2458.4,2458.0,7.6862116]
[1751348325161,0.81337,2458.3,2458.2,0.81339]
[1751348325361,0.8134,2458.2,2458.1,24.97]
[1751348325560,0.8134,2458.2,2458.1,36.594]
[1751348326365,0.81339,2458.3,2458.2,0.8134]
[1751348326864,0.81339,2458.3,2458.1,36.594]
[1751348327169,0.81339,2458.3,2458.2,0.8134]
[1751348327370,0.81339,2458.3,2458.1,38.7639]
[1751348327569,0.81339,2458.3,2458.2,0.8134]
[1751348327773,0.81339,2458.3,2458.2,3.1433746]
[1751348327967,0.81336,2458.4,2458.2,3.1433746]
[1751348328165,0.81336,2458.3,2458.2,3.1433746]
[1751348328365,0.81336,2458.3,2458.2,2.3299746]
[1751348329272,0.81336,2458.3,2458.2,3.1433746]
[1751348329472,0.81336,2458.3,2458.2,2.3299746]
[1751348330771,0.81335,2458.4,2458.3,0.81336]
[1751348331873,0.8134,2458.2,2458.1,0.6686]
[1751348332071,0.8134,2458.2,2458.1,36.564]
[1751348332875,0.81357,2457.7,2457.6,0.81359]
[1751348333076,0.81359,2457.6,2457.5,0.6594]
[1751348333275,0.81359,2457.6,2457.5,1.47303]
[1751348333575,0.81359,2457.6,2457.5,0.6594]
[1751348333771,0.81359,2457.6,2457.5,1.47303]
[1751348334077,0.6743,2457.8,2457.5,1.47303]
[1751348334276,41.4743,2457.8,2457.5,1.47303]
[1751348334472,0.81359,2457.6,2457.5,0.6594]
[1751348338270,1.72432401,2457.6,2457.5,0.6594]
[1751348338869,0.81366,2457.4,2457.3,2.3299746]
[1751348339870,2.03401,2457.6,2457.2,70.9207]
[1751348339871,0.81369,2457.3,2457.2,70.9207]
[1751348340974,41.4743,2457.8,2457.2,70.9207]
[1751348341168,0.81365,2457.5,2457.4,2.3299746]
[1751348342375,0.81366,2457.4,2457.3,0.81367]
[1751348342576,0.81369,2457.3,2457.2,75.3941846]
[1751348342780,0.81369,2457.3,2457.2,74.0643846]
[1751348343076,0.81369,2457.3,2457.2,71.73441]
[1751348343577,0.81369,2457.3,2457.2,70.9207]
[1751348344074,0.7115,2457.5,2457.2,73.2506746]
[1751348344381,0.81362,2457.6,2457.4,5.5377746]
[1751348344579,0.81363,2457.5,2457.4,3.1436146]
[1751348344781,43.50816,2457.8,2457.4,5.5377746]
[1751348344979,0.91003039,2457.7,2457.4,2.3299746]
[1751348345182,43.50816,2457.8,2457.4,2.3299746]
[1751348345385,0.81363,2457.5,2457.4,3.1436246]
[1751348345584,0.81363,2457.5,2457.4,2.3299746]
[1751348346081,0.81363,2457.5,2457.4,3.1436346]
[1751348346580,0.81366,2457.4,2457.3,2.12658]
[1751348346880,0.81366,2457.4,2457.2,98.9147746]
[1751348346881,0.81369,2457.3,2457.2,70.9207]
[1751348347078,4.02149,2457.3,2457.2,70.235]
[1751348347386,4.02149,2457.3,2457.2,11.623]
[1751348347880,5.24206,2457.3,2456.8,0.81384]
[1751348348080,0.81386,2456.9,2456.8,13.10744]
[1751348349182,0.81382,2457.0,2456.9,0.8138]
[1751348349584,0.81379,2457.1,2457.0,0.81376]
[1751348350285,1.52134,2457.2,2457.1,0.81376]
[1751348350786,1.52135,2457.2,2457.0,0.81377]
[1751348350985,1.52135,2457.2,2457.1,2.14326]
[1751348351187,4.02152,2457.3,2457.2,0.81373]
[1751348351484,4.02152,2457.3,2457.2,1.3295]
[1751348351683,4.02152,2457.3,2457.2,2.0089]
[1751348352481,0.81372,2457.3,2457.2,2.0089]
[1751348353886,0.81383,2456.9,2456.8,11.597]
[1751348354188,0.81383,2456.9,2456.8,14.42716]
[1751348354887,0.81382,2457.0,2456.9,0.81383]
[1751348355087,0.81379,2457.1,2456.9,2.15453]
[1751348355388,0.81379,2457.1,2457.0,1.3407]
[1751348356385,0.81379,2457.1,2457.0,2.15449]
[1751348356588,0.81379,2457.1,2457.0,4.5485]
[1751348358386,0.81374,2457.2,2457.0,5.36229]
[1751348358587,0.81374,2457.2,2457.1,1.4341]
[1751348360491,0.81376,2457.1,2457.0,3.2078]
[1751348361480,0.81374,2457.3,2457.2,0.81371]
[1751348361685,0.81376,2457.2,2457.1,0.81374]
[1751348362091,0.81376,2457.2,2457.1,2.24844]
[1751348363595,0.81371,2457.3,2457.2,0.81372]
[1751348363891,1.72615033,2457.3,2457.2,0.7163]
[1751348364296,0.81376,2457.1,2457.0,3.2078]
[1751348364498,0.81379,2457.0,2456.9,0.7163]
[1751348365899,0.81383,2456.9,2456.8,11.597]
[1751348366198,0.81383,2456.9,2456.8,12.41086]
[1751348367192,0.81383,2457.0,2456.9,0.8138]
[1751348367398,0.81383,2456.9,2456.8,13.80344]
[1751348367895,0.81383,2456.9,2456.8,16.1360347]
[1751348368093,0.81383,2456.9,2456.8,15.3221947]
[1751348369595,0.81383,2456.9,2456.8,13.9295947]
[1751348369796,0.81383,2456.9,2456.8,11.597]
[1751348370093,0.81396,2456.5,2456.4,3.2078]
[1751348370298,0.81396,2456.5,2455.8,63.90411952]
[1751348370299,0.81409,2456.1,2456.0,14.7978]
[1751348370795,0.81409,2456.1,2456.0,17.1303947]
[1751348371294,0.81409,2456.1,2456.0,18.5035947]
[1751348371902,3.2078,2456.6,2456.2,0.81406]
[1751348372201,1.7260102,2456.5,2456.3,2.92241]
[1751348372497,0.81399,2456.4,2456.3,0.7119]
[1751348374604,0.81399,2456.4,2456.3,1.52593]
[1751348374802,42.29697,2456.5,2456.4,0.81399]
[1751348375201,1.49697,2456.5,2456.3,1.5259]
[1751348375501,1.49698,2456.5,2456.3,0.7119]
[1751348375701,0.81399,2456.4,2456.3,0.7119]
[1751348375893,0.81399,2456.4,2456.3,2.0797]
[1751348376098,0.81399,2456.4,2456.3,2.89373]
[1751348376694,0.81399,2456.4,2456.3,0.7119]
[1751348378201,0.81406,2456.2,2456.1,0.81407]
[1751348378402,0.81409,2456.1,2456.0,4.724]
[1751348378705,0.81409,2456.1,2456.0,16.317]
[1751348379104,0.81408,2456.2,2456.1,0.81407]
[1751348380406,42.1115,2456.4,2456.0,16.317]
[1751348380407,0.81409,2456.1,2456.0,16.317]
[1751348380808,0.81408,2456.2,2456.1,0.81408]
[1751348381002,0.81409,2456.1,2456.0,16.317]
[1751348381412,44.1465,2456.4,2456.0,16.317]
[1751348381604,0.81409,2456.1,2456.0,16.317]
[1751348382204,0.81429,2455.5,2455.4,2.41961916]
[1751348382502,0.81429,2455.5,2455.4,0.7216]
[1751348382707,0.81432,2455.4,2455.3,3.2078]
[1751348383109,0.81432,2455.4,2455.3,4.02216]
[1751348383610,1.4992,2455.5,2455.4,0.81432]
[1751348383813,0.6849,2455.5,2455.4,0.81432]
[1751348384010,0.81422,2455.8,2455.7,0.81422]
[1751348384308,0.81422,2455.8,2455.7,0.81421]
[1751348384707,1.72812653,2455.8,2455.7,0.81421]
[1751348384912,0.91390653,2455.8,2455.7,0.81421]
[1751348385510,0.91390653,2455.8,2455.6,0.81424]
[1751348385701,0.81418,2455.9,2455.8,0.81419]
[1751348386211,0.81416,2455.9,2455.8,0.81419]
[1751348386415,0.8142,2455.8,2455.7,0.81422]
[1751348386916,0.81418,2455.9,2455.7,0.81422]
[1751348387211,0.81418,2455.9,2455.8,0.81419]
[1751348387510,0.81418,2455.9,2455.7,0.8142]
[1751348387811,0.81419,2455.8,2455.7,0.8142]
[1751348388410,0.81418,2455.9,2455.8,0.81419]
[1751348388611,4.02195,2456.0,2455.9,0.81416]
[1751348388810,0.81417,2455.9,2455.8,0.81418]
[1751348389405,1.3603,2456.1,2456.0,0.81412]
[1751348389609,3.2078,2456.3,2455.7,1.3565]
[1751348389812,0.8141,2456.1,2455.7,8.54981561]
[1751348390111,0.8141,2456.1,2456.0,0.81412]
[1751348390506,0.81414,2456.0,2455.9,0.81414]
[1751348390705,1.50984,2456.0,2455.9,0.81414]
[1751348391719,0.6957,2456.0,2455.9,0.81414]
[1751348392113,3.2078,2456.2,2456.1,0.81409]
[1751348392314,4.02186,2456.2,2456.1,0.81409]
[1751348392514,3.2078,2456.2,2456.1,0.81409]
[1751348393216,4.12283699,2456.2,2456.1,0.81409]
[1751348393418,4.93689699,2456.2,2456.1,0.81409]
[1751348393719,4.12283699,2456.2,2456.1,0.81409]
[1751348393914,0.91503699,2456.2,2456.1,0.81409]
[1751348394114,1.50975,2456.3,2456.2,0.81406]
[1751348394317,2.425085,2456.3,2456.2,0.81406]
[1751348394619,0.81407,2456.2,2456.1,0.81407]
[1751348394816,0.81409,2456.1,2456.0,1.51261]
[1751348395013,0.81409,2456.1,2456.0,0.6985]
[1751348395218,0.81409,2456.1,2456.0,1.51262]
[1751348396320,1.72993997,2456.2,2456.1,0.81409]
[1751348396519,1.72993894,2456.2,2456.1,0.81409]
[1751348396721,0.81416,2456.0,2455.9,0.81414]
[1751348397319,5.91613216,2456.0,2455.4,11.596]
[1751348397509,3.14879669,2455.5,2455.4,11.596]
[1751348397917,0.81429,2455.5,2455.4,12.41032]
[1751348399416,0.81429,2455.5,2455.4,11.596]
[1751348400123,0.81429,2455.5,2455.4,12.41032]
[1751348400519,3.9302,2455.9,2455.4,11.596]
[1751348400721,1.73098504,2455.8,2455.7,0.8142]
[1751348401923,0.91675504,2455.8,2455.7,0.8142]
[1751348402426,1.73094504,2455.8,2455.7,0.8142]
[1751348403024,0.81422,2455.7,2455.6,1.3931]
[1751348403527,0.81426,2455.6,2455.5,0.81428]
[1751348404226,5.95952,2455.9,2455.4,13.08359]
[1751348404425,0.81428,2455.6,2455.5,0.81429]
[1751348404723,0.81428,2455.6,2455.4,13.6624]
[1751348404724,0.81429,2455.5,2455.4,14.4767]
[1751348404923,0.81429,2455.5,2455.4,13.0836]
[1751348405425,0.81432,2455.4,2455.3,4.02214]
[1751348405620,0.81432,2455.4,2455.3,15.63114]
[1751348407428,0.81432,2455.5,2455.4,0.81431]
[1751348408636,0.81428,2455.6,2455.5,0.81429]
[1751348408831,0.8143,2455.5,2455.4,0.8143]
[1751348409424,0.81432,2455.4,2455.3,15.63114]
[1751348409632,0.81432,2455.4,2455.3,14.8168]
[1751348410035,0.81432,2455.4,2455.3,15.63116]
[1751348410436,1.73218521,2455.4,2455.3,15.63116]
[1751348411232,1.73218521,2455.4,2455.3,4.02216]
[1751348411632,1.73218521,2455.4,2455.3,3.2078]
[1751348411835,0.81436,2455.3,2455.2,11.61]
[1751348412038,1.73222521,2455.3,2455.2,11.61]
[1751348412835,0.81442,2455.1,2455.0,0.82244]
[1751348413037,0.81442,2455.1,2455.0,0.008]
[1751348413333,2.71151,2455.3,2455.1,0.81439]
[1751348413334,0.6756,2455.3,2455.1,0.81439]
[1751348413539,1.73248255,2455.2,2455.1,0.81439]
[1751348413933,1.78830291,2455.2,2455.1,0.81439]
[1751348414133,0.87023036,2455.2,2455.1,0.81439]
[1751348414340,0.93337116,2455.2,2455.1,0.81439]
[1751348414840,1.03683468,2455.2,2455.1,0.81439]
[1751348415929,1.03683468,2455.2,2455.0,0.82244]
[1751348416136,1.73229352,2455.1,2455.0,0.008]
[1751348416334,1.79543432,2455.1,2455.0,0.008]
[1751348416641,1.79543432,2455.1,2455.0,0.82246]
[1751348417135,1.85125468,2455.1,2455.0,0.82246]
[1751348418739,0.11896116,2455.1,2455.0,0.82246]
[1751348418943,0.81428,2455.6,2455.5,0.81429]
[1751348419242,0.81425,2455.7,2455.6,0.81425]
[1751348419442,41.71768404,2455.7,2455.6,0.81425]
[1751348419836,42.53190404,2455.7,2455.6,0.81425]
[1751348420443,0.81426,2455.6,2455.5,0.81427]
[1751348420740,1.73194404,2455.6,2455.5,1.47947]
[1751348424243,4.93975404,2455.6,2455.1,2.03607]
[1751348424537,0.91837991,2455.5,2455.4,0.81432]
[1751348424743,0.91837991,2455.5,2455.4,2.16642]
[1751348424938,41.71837991,2455.5,2455.4,2.16642]
[1751348425334,0.91837991,2455.5,2455.4,2.16642]
[1751348425539,1.73266991,2455.5,2455.4,2.16642]
[1751348425742,0.91837991,2455.5,2455.4,2.16642]